Workbook

Sheet Лист2
A1: Согласовано | H1: Утверждаю
A2: Начальник отдела образования | H2: Директор ____________________
A3: Сармановского муниципального района
A4: ______________Г.Я.Идрисова
A6: ПРИМЕРНОЕ 12 ДНЕВНОЕ МЕНЮ
A7: для организации бесплатного горячего питания для обучающихся начальных классов образовательных организаций Республики Татарстан
B8: Наименование блюда | C8: Выход блюда(гр) | D8: Пищевые вещества(г) | G8: Энергетическая ценность (ккал) | H8: Минеральные вещества (мг) | J8: Витамины (мг) | K8: № тех. карты
D9: Б | E9: Ж | F9: У | H9: Са | I9: Р | J9: С
C11: 1-4 кл | D11: 1-4 кл | E11: 1-4 кл | F11: 1-4 кл | G11: 1-4 кл | H11: 1-4 кл | I11: 1-4 кл | J11: 1-4 кл
A12: 1 неделя 1 день (понедельник)
A13: Горячий Завтрак | B13: Салат из моркови с сахаром | C13: 60 | D13: 0.516 | E13: 2.132 | F13: 4.45 | G13: 50 | H13: 23.302 | I13: 10.85 | J13: 13.43 | K13: 62
B14: Бифштекс рубленный | C14: 100 | D14: 8.32 | E14: 7.15 | F14: 9.72 | G14: 200 | H14: 11.01 | I14: 127.02 | K14: 266
B15: Каша вязкая гречнивая | C15: 150 | D15: 6.662 | E15: 9.024 | F15: 34.9 | G15: 170 | H15: 37.352 | I15: 170.553 | K15: 303
B16: Вафли | C16: 20 | D16: 5.5 | E16: 6.5 | F16: 34.9 | G16: 210.9 | H16: 8 | J16: 25.1
B17: Апельсин | C17: 100 | D17: 0.9 | E17: 0.2 | F17: 8.1 | G17: 43 | H17: 40 | I17: 14 | J17: 53.2
B18: Чай с молоком | C18: 150/50/15 | D18: 1.52 | E18: 1.35 | F18: 14.76 | G18: 81 | H18: 40 | I18: 92.8 | J18: 1.33 | K18: 378
B19: Хлеб ржаной | C19: 20 | D19: 1 | E19: 0.2 | F19: 9 | G19: 44 | H19: 2.76 | I19: 12.72
B20: Хлеб рж-пшеничный | C20: 30 | D20: 2.28 | E20: 0.24 | F20: 0.49 | G20: 71 | H20: 6 | I20: 19.5
A21: Итого | D21: =SUM(D13:D20) -> 26.698 | E21: =SUM(E13:E20) -> 26.796 | F21: =SUM(F13:F20) -> 116.32 | G21: =SUM(G13:G20) -> 869.9 | H21: =SUM(H13:H20) -> 168.424 | I21: 447.443 | J21: 93.06
A22: 1 неделя 2 день (вторник)
A23: Горячий Завтрак | B23: Салат из белокочанной капусты | C23: 60 | D23: 0.78 | E23: 6.1 | F23: 19.7 | G23: 158.64 | H23: 192.17 | I23: 156.05 | J23: 1.09 | K23: 390
B24: Рагу из птицы | C24: 50/150 | D24: 12.3 | E24: 17.66 | F24: 29.85 | G24: 313 | H24: 57.66 | I24: 201.911 | J24: 8.076 | K24: 289
B25: Булочки сдобные "Ромашка" | C25: 90 | D25: 3.9 | E25: 3.6 | F25: 28.5 | G25: 196 | H25: 13.6 | I25: 22.13 | K25: 34
B26: Кофейный напиток | C26: 200 | D26: 3.6 | E26: 2.67 | F26: 29.2 | G26: 155 | H26: 158.67 | I26: 132 | J26: 1.47 | K26: 379
B27: Яблоко | C27: 100 | D27: 0.26 | E27: 0.17 | F27: 11.41 | G27: 52 | H27: 35.5 | I27: 42.58 | J27: 8.23
B28: Хлеб ржаной | C28: 20 | D28: 1 | E28: 0.2 | F28: 9 | G28: 44 | H28: 2.76 | I28: 12.72
B29: Хлеб рж-пшеничный | C29: 30 | D29: 2.28 | E29: 0.24 | F29: 0.49 | G29: 71 | H29: 6 | I29: 19.5
A30: Итого | D30: =SUM(D23:D29) -> 24.12 | E30: 30.64 | F30: 128.15 | G30: 989.64 | H30: 466.36 | I30: 586.891 | J30: 18.866
A31: 1 неделя 3 день (среда)
A32: Горячий Завтрак | B32: Салат из свеклы отварной | C32: 60 | D32: 0.855 | E32: 3.653 | F32: 11.58 | G32: 56 | H32: 121.09 | I32: 84.582 | J32: 7.7 | K32: 52
B33: Гуляш из говядины | C33: 50/50 | D33: 10.5 | E33: 11.03 | F33: 3.184 | G33: 196 | H33: 66.806 | I33: 215.174 | J33: 3.89 | K33: 256
B34: Макаронные изделия отварные с маслом | C34: 150/5 | D34: 5.1 | E34: 4.468 | F34: 28.5 | G34: 187 | H34: 16.457 | I34: 57.009 | K34: 203
B35: Пряники | C35: 20 | D35: 0.75 | E35: 3.25 | F35: 30.5 | G35: 181 | J35: 0
B36: Какао с молоком | C36: 200 | D36: 3.78 | E36: 0.67 | F36: 26 | G36: 125 | H36: 133.33 | I36: 111.11 | J36: 1.33 | K36: 382
B37: Банан | C37: 100 | D37: 1.5 | E37: 0.5 | F37: 21 | G37: 96 | H37: 3 | I37: 5 | J37: 11.00
B38: Хлеб ржаной | C38: 20 | D38: 1 | E38: 0.2 | F38: 9 | G38: 44 | H38: 2.76 | I38: 12.72
B39: Хлеб рж-пшеничный | C39: 30 | D39: 2.28 | E39: 0.24 | F39: 0.49 | G39: 71 | H39: 6 | I39: 19.5
A40: Итого | D40: =SUM(D32:D39) -> 25.765 | E40: 24.011 | F40: 130.254 | G40: 956 | H40: 349.443 | I40: 505.095 | J40: 23.92
A41: 1 неделя 4 день (четверг)
A42: Горячий Завтрак | B42: Салат овощной с яблоками | C42: 60 | D42: 3.5 | E42: 6.11 | F42: 9.9 | G42: 124 | H42: 126.88 | I42: 120.41 | J42: 11.31 | K42: 56
B43: Сыр порционный | C43: 20 | D43: 2.18 | E43: 0.5 | F43: 0.78 | G43: 16.12 | H43: 11.31 | I43: 11.36 | J43: 0.09
B44: Котлеты рубленные из птицы | C44: 100 | D44: 10.24 | E44: 5.37 | F44: 19.36 | G44: 159 | H44: 89.43 | I44: 158 | J44: 0 | K44: 295
B45: Картофельное пюре | C45: 150 | D45: 3.09 | E45: 8.282 | F45: 22 | G45: 172 | H45: 47.805 | I45: 98.835 | J45: 7.943 | K45: 312
B46: Вафли | C46: 20 | D46: 5.5 | E46: 6.5 | F46: 34.9 | G46: 210.9 | H46: 8 | J46: 25.1
B47: Сок фруктовый | C47: 200 | D47: 1 | E47: 0.2 | F47: 20.2 | G47: 92 | H47: 9.6 | I47: 2 | J47: 4.4
B48: Хлеб ржаной | C48: 20 | D48: 1 | E48: 0.2 | F48: 9 | G48: 44 | H48: 2.76 | I48: 12.72
B49: Хлеб рж-пшеничный | C49: 30 | D49: 2.28 | E49: 0.24 | F49: 0.49 | G49: 71 | H49: 6 | I49: 19.5
A50: Итого | D50: =SUM(D42:D49) -> 28.79 | E50: 27.402 | F50: 116.63 | G50: 889.02 | H50: 301.785 | I50: 422.825 | J50: 48.843
A51: 1 неделя 5 день (пятница)
A52: Горячий Завтрак | B52: Салат из моркови с яблоками | C52: 60 | D52: 0.66 | E52: 0.12 | F52: 2.28 | G52: 14 | H52: 3.861 | I52: 8.4 | J52: 15.6 | K52: 59
B53: Горбуша тушеные с овощами | C53: 80 | D53: 9.8 | E53: 3.1 | F53: 2.7 | G53: 78.1 | H53: 6.5 | I53: 23 | J53: 1.6 | K53: 268
B54: Рис отварной | C54: 150 | D54: 3.834 | E54: 5.434 | F54: 29.6 | G54: 210 | H54: 11.46 | I54: 84.15 | K54: 304
B55: Кисель | C55: 200 | D55: 0 | E55: 0 | F55: 20 | G55: 76 | H55: 0.48 | J55: 0.00 | K55: 122
B56: Груша | C56: 100 | D56: 0.36 | E56: 0.14 | F56: 12.13 | G56: 57 | H56: 6.2 | I56: 1 | J56: 5.6
B57: Хлеб ржаной | C57: 20 | D57: 1 | E57: 0.2 | F57: 9 | G57: 44 | H57: 2.76 | I57: 12.72
B58: Хлеб рж-пшеничный | C58: 30 | D58: 2.28 | E58: 0.24 | F58: 0.49 | G58: 71 | H58: 6 | I58: 19.5
A59: Итого | D59: =SUM(D52:D58) -> 17.934 | E59: 9.234 | F59: 76.2 | G59: 550.1 | H59: 37.261 | I59: 148.77 | J59: 22.80
A60: 1 неделя 6 день (суббота)
A61: Горячий Завтрак | B61: Плоды и ягоды свежие яблоки | C61: 100 | D61: 0.4 | E61: 0.4 | F61: 7.35 | G61: 47 | H61: 16 | I61: 11 | J61: 8 | K61: 338
B62: Булочки сдобные "Ромашка" | C62: 90 | D62: 3.9 | E62: 3.6 | F62: 28.5 | G62: 196 | H62: 13.6 | I62: 22.13 | K62: 34
B63: Пельмени мясные отварные | C63: 180/5 | D63: 10.34 | E63: 12.175 | F63: 20.34 | G63: 237 | H63: 79.453 | I63: 239.018 | J63: 0.491 | K63: 392
B64: Кофейный напиток с молоком | C64: 200 | D64: 3.6 | E64: 2.67 | F64: 29.2 | G64: 155 | H64: 158.67 | I64: 132 | J64: 1.47 | K64: 379
B65: Хлеб ржаной | C65: 20 | D65: 1 | E65: 0.2 | F65: 9 | G65: 44 | H65: 2.76 | I65: 12.72
B66: Хлеб рж-пшеничный | C66: 30 | D66: 2.28 | E66: 0.24 | F66: 0.49 | G66: 71 | H66: 6 | I66: 19.5
A67: Итого | D67: =SUM(D62:D66) -> 21.12 | E67: 18.885 | F67: 87.53 | G67: 703 | H67: 260.483 | I67: 425.368 | J67: 1.961
A68: 2 неделя 1 день (понедельник)
A69: Горячий Завтрак | B69: Апельсин | C69: 100 | D69: 0.4 | E69: 0.4 | F69: 7.35 | G69: 47 | H69: 46 | I69: 11 | J69: 8.00 | K69: 338
B70: Салат из белокочанной капусты | C70: 60 | D70: 0.78 | E70: 1.94 | F70: 3.87 | G70: 36 | H70: 16.98 | I70: 45.98 | J70: 6.25 | K70: 45
B71: Фрикадельки в соусе | C71: 55 | D71: 8.33 | E71: 7.743 | F71: 3.194 | G71: 175 | H71: 100.53 | I71: 110.53 | J71: 0.65 | K71: 280
B72: Каша гречневая рассыпчатая | C72: 150 | D72: 6.662 | E72: 9.024 | F72: 34 | G72: 170 | H72: 37.352 | I72: 170.553 | J72: -
B73: Чай с сахаром | C73: 200/15 | D73: 0.53 | F73: 9.47 | G73: 40 | H73: 13.6 | I73: 22.13 | J73: 0.27 | K73: 376
B74: Вафли | C74: 20 | D74: 5.5 | E74: 6.5 | F74: 34.9 | G74: 210.9 | H74: 8 | J74: 25.1
B75: Хлеб ржаной | C75: 20 | D75: 1 | E75: 0.2 | F75: 9 | G75: 44 | H75: 2.76 | I75: 12.72
B76: Хлеб рж-пшеничный | C76: 30 | D76: 2.28 | E76: 0.24 | F76: 0.49 | G76: 71 | H76: 6 | I76: 19.5
A77: Итого | D77: =SUM(D69:D76) -> 25.482 | E77: =SUM(E69:E76) -> 26.047 | F77: =SUM(F69:F76) -> 102.274 | G77: =SUM(G69:G76) -> 793.9 | H77: =SUM(H69:H76) -> 231.222 | I77: =SUM(I70:I76) -> 381.413 | J77: =SUM(J69:J76) -> 40.27
A78: 2 неделя 2 день (вторник)
A79: Горячий Завтрак | B79: Салат из белокочанной капусты | C79: 60 | D79: 0.78 | E79: 1.94 | F79: 3.87 | G79: 36 | H79: 16.98 | I79: 45.98 | J79: 6.25 | K79: 45
B80: Ленивые голубцы | C80: 200 | D80: 11.6 | E80: 17.5 | F80: 7.4 | G80: 235.7 | H80: 83.07 | I80: 273 | J80: 4.9 | K80: 291
B81: Ряженка | C81: 200 | D81: 5.8 | E81: 5 | F81: 8.4 | G81: 108 | H81: 248 | I81: 184 | J81: 0.60
B82: Булочки сдобные "Ромашка" | C82: 90 | D82: 3.9 | E82: 3.6 | F82: 28.5 | G82: 196 | H82: 13.6 | I82: 22.13 | K82: 34
B83: Банан | C83: 100 | D83: 1.5 | E83: 0.5 | F83: 21 | G83: 96 | H83: 3 | I83: 5 | J83: 11.00
B84: Хлеб ржаной | C84: 20 | D84: 1 | E84: 0.2 | F84: 9 | G84: 44 | H84: 2.76 | I84: 12.72
B85: Хлеб рж-пшеничный | C85: 30 | D85: 2.28 | E85: 0.24 | F85: 0.49 | G85: 71 | H85: 6 | I85: 19.5
A86: Итого | D86: =SUM(D79:D85) -> 26.86 | E86: 28.98 | F86: 78.66 | G86: 786.7 | H86: 373.41 | I86: 562.33 | J86: 22.75
A87: 2 неделя 3 день (среда)
A88: Горячий Завтрак | B88: Салат из свеклы отварной | C88: 60 | D88: 0.855 | E88: 3.653 | F88: 11.58 | G88: 56 | H88: 121.09 | I88: 84.58 | J88: 7.7 | K88: 52
B89: Биточки рыбные(минтай) | C89: 100 | D89: 6.45 | E89: 4.24 | F89: 7.49 | G89: 116 | H89: 44.02 | I89: 137.06 | J89: 0.48 | K89: 234
B90: Картофельное пюре | C90: 150 | D90: 3.09 | E90: 8.282 | F90: 22 | G90: 172 | H90: 47.805 | I90: 98.835 | J90: 7.943 | K90: 312
B91: Компот из сухофруктов | C91: 200 | D91: 0.04 | E91: 0 | F91: 0 | G91: 94.2 | H91: 6.4 | I91: 3.6 | J91: 1.08 | K91: 868
B92: Вафли | C92: 20 | D92: 5.5 | E92: 6.5 | F92: 34.9 | G92: 210.9 | H92: 8 | J92: 25.1
B93: Груша | C93: 100 | D93: 0.36 | E93: 0.14 | F93: 12.13 | G93: 57 | H93: 6.2 | I93: 1 | J93: 5.6
B94: Хлеб ржаной | C94: 20 | D94: 1 | E94: 0.2 | F94: 9 | G94: 44 | H94: 2.76 | I94: 12.72
B95: Хлеб рж-пшеничный | C95: 30 | D95: 2.28 | E95: 0.24 | F95: 0.49 | G95: 71 | H95: 6 | I95: 19.5
A96: Итого | D96: =SUM(D88:D95) -> 19.575 | E96: =SUM(E88:E95) -> 23.255 | F96: =SUM(F88:F95) -> 97.59 | G96: =SUM(G88:G95) -> 821.1 | H96: =SUM(H88:H95) -> 242.275 | I96: =SUM(I88:I95) -> 357.295 | J96: =SUM(J88:J95) -> 47.90
A97: 2 неделя 4 день (четверг)
A98: Горячий Завтрак | B98: Салат из моркови с сахаром | C98: 60 | D98: 0.516 | E98: 2.132 | F98: 4.45 | G98: 50 | H98: 23.302 | I98: 10.85 | J98: 13.43 | K98: 62
B99: Тефтели с рисом из гов.мясом | C99: 80 | D99: 10.8 | E99: 16.7 | F99: 13.4 | G99: 248 | H99: 34.56 | I99: 110.1 | J99: 1.017 | K99: 280
B100: Макароны отварные с маслом | C100: 150/5 | D100: 5.1 | E100: 4.468 | F100: 28.5 | G100: 187 | H100: 16.457 | I100: 57.009 | K100: 203
B101: Какао с молоком | C101: 200 | D101: 3.78 | E101: 0.67 | F101: 26 | G101: 125 | H101: 133.33 | I101: 111.11 | J101: 1.33 | K101: 382
B102: Пряники | C102: 20 | D102: 0.75 | E102: 3.25 | F102: 30.5 | G102: 181 | J102: 0
B103: Яблоко | C103: 100 | D103: 0.26 | E103: 0.17 | F103: 11.41 | G103: 52 | H103: 35.5 | I103: 42.58 | J103: 8.23
B104: Хлеб ржаной | C104: 20 | D104: 1 | E104: 0.2 | F104: 9 | G104: 44 | H104: 2.76 | I104: 12.72
B105: Хлеб рж-пшеничный | C105: 30 | D105: 2.28 | E105: 0.24 | F105: 0.49 | G105: 71 | H105: 6 | I105: 19.5
A106: Итого | D106: =SUM(D98:D105) -> 24.486 | E106: 27.83 | F106: 123.75 | G106: 958 | H106: 251.909 | I106: 363.869 | J106: 24.01
A107: 2 неделя 5 день (пятница)
A108: Горячий Завтрак | B108: Салат из свеклы отварной | C108: 60 | D108: 0.855 | E108: 3.653 | F108: 11.58 | G108: 56 | H108: 121.09 | I108: 84.58 | J108: 7.7 | K108: 52
B109: Жаркое из говядины | C109: 50/150 | D109: 12.3 | E109: 17.66 | F109: 29.85 | G109: 313 | H109: 57.66 | I109: 201.911 | J109: 8.076 | K109: 289
B110: Чай с сахаром | C110: 200/15 | D110: 0.53 | F110: 9.47 | G110: 40 | H110: 13.6 | I110: 22.13 | J110: 0.27 | K110: 376
B111: Сок фруктовый 0,2 | C111: 200 | D111: 0.4 | E111: 0.4 | F111: 7.35 | G111: 47 | H111: 46 | I111: 11 | J111: 8.00 | K111: 338
B112: Хлеб ржаной | C112: 20 | D112: 1 | E112: 0.2 | F112: 9 | G112: 44 | H112: 2.76 | I112: 12.72
B113: Хлеб рж-пшеничный | C113: 30 | D113: 2.28 | E113: 0.24 | F113: 0.49 | G113: 71 | H113: 6 | I113: 19.5
A114: Итого | D114: =SUM(D108:D113) -> 17.365 | E114: 22.153 | F114: 67.74 | G114: 571 | H114: 247.11 | I114: 351.841 | J114: 24.05
A115: 2 неделя 6 день (суббота)
A116: Горячий завтрак | B116: Яблоко | C116: 100 | D116: 0.26 | E116: 0.17 | F116: 11.41 | G116: 52 | H116: 35.5 | I116: 42.58 | J116: 8.23
B117: Булочки сдобные "Ромашка" | C117: 90 | D117: 3.9 | E117: 3.6 | F117: 28.5 | G117: 196 | H117: 13.6 | I117: 22.13 | K117: 34
B118: Салат овощной с яблоками | C118: 60 | D118: 0.66 | E118: 0.12 | F118: 2.28 | G118: 14 | H118: 3.861 | I118: 8.4 | J118: 15.6 | K118: 59
B119: Пельмени мясные отварные | C119: 180/5 | D119: 10.34 | E119: 12.175 | F119: 20.34 | G119: 237 | H119: 79.453 | I119: 239.018 | J119: 0.491 | K119: 392
A120: Обед | B120: Чай с лимоном | C120: 200/15/7 | D120: 0.084 | E120: 0.012 | F120: 15.185 | G120: 62 | H120: 3.25 | I120: 1.54 | J120: 2.8 | K120: 377
B121: Хлеб ржаной | C121: 20 | D121: 1 | E121: 0.2 | F121: 9 | G121: 44 | H121: 2.76 | I121: 12.72
B122: Хлеб рж-пшеничный | C122: 30 | D122: 2.28 | E122: 0.24 | F122: 0.49 | G122: 71 | H122: 6 | I122: 19.5
A123: Итого | D123: =SUM(D117:D119) -> 14.9 | E123: 15.895 | F123: 51.12 | G123: 447 | H123: 96.914 | I123: 269.548 | J123: 16.09
B124: Итого за 12 дней | D124: =SUM(D21,D30,D40,D50,D59,D77,D86,D96,D106,D114,D123) -> 251.975 | E124: 262.243 | F124: 1088.688 | G124: 8632.36 | H124: 2766.113 | I124: 4397.32 | J124: 382.56
B125: Средняя величина за 1 день | D125: =D124/12 -> 21.00 | E125: 21.85 | F125: 90.72 | G125: 719.36 | H125: =H124/12 -> 230.51 | I125: 366.44 | J125: 31.88

Sheet Лист3
A1: Наименование сборника рецептур:Сборник рецептур блюд и кулинарных изделий для предприятий общественного питания / Авт.-сост: А.И.Здобнов, В.А. Цыганенко, М.И.Цыганенко, М.И.Пересичный- К.А.С.К. 2005 г.
A2: ПРИМЕРНОЕ 5 ДНЕВНОЕ МЕНЮ ДЛЯ ГРУПП ПРОДЛЕННОГО ДНЯ ОБЩЕОБРАЗОВАТЕЛЬНЫХ УЧРЕЖДЕНИЙ САРМАНОВСКОГО МУНИЦИПАЛЬНОГО РАЙОНА
A3: на 2 полугодие 2018-2019 учебного года
B4: Наименование блюда | C4: Выход блюда(гр) | E4: Пищевые вещества(г) | K4: Энергетическая ценность (ккал) | M4: Минеральн.вещества, мг | O4: Витамины, мг | P4: № тех. карты
E5: Б | G5: Ж | I5: У
C7: 1-4 кл | E7: 1-4 кл | G7: 1-4 кл | I7: 1-4 кл | K7: 1-4 кл | M7: Са | N7: Р | O7: С
A8: Обед | B8: Понедельник
B9: ЩИ с капустой и картофелем | C9: 250 | E9: 1.75 | G9: 4.84 | I9: 8.49 | K9: 84.75 | M9: 73.33 | N9: 47.63 | O9: 18.46 | P9: 187
B10: Компот из смеси сухофруктов | C10: 200 | E10: 0.04 | G10: 0 | I10: 24.76 | K10: 94.2 | M10: 6.40 | N10: 3.6 | O10: 1.08 | P10: 868
B11: Хлеб рж-пшеничный | C11: 55 | E11: 2.72 | G11: 0.49 | I11: 0.74 | K11: 74.6 | M11: 0.11 | N11: 21.65 | O11: 0 | P11: 61
B12: ИТОГО | E12: =SUM(E9:E11) -> 4.51 | F12: 0 | G12: 5.33 | H12: 0 | I12: 33.99 | J12: 0 | K12: 253.55 | L12: 0 | M12: 79.84 | N12: 72.88 | O12: 19.54
A13: Обед | B13: Вторник
B14: Суп картофельный с горохом на м/к бульоне | C14: 250 | E14: 5.5 | G14: 5.28 | I14: 16.33 | K14: 134.7 | M14: 5.70 | N14: 10.8 | O14: 7.8 | P14: 206
B15: Чай сладкий с сахаром | C15: 200 | E15: 1.2 | G15: 3.06 | I15: 13 | K15: 49.28 | M15: 11.60 | N15: 0 | O15: 6 | P15: 943
B16: Хлеб рж-пшеничный | C16: 55 | E16: 2.72 | G16: 0.49 | I16: 0.74 | K16: 74.6 | M16: 0.11 | N16: 21.65 | O16: 0 | P16: 61
B17: ИТОГО | E17: =SUM(E14:E16) -> 9.42 | F17: 0 | G17: 8.83 | H17: 0 | I17: 30.07 | J17: 0 | K17: 258.58 | L17: 0 | M17: 17.41 | N17: 32.45 | O17: 13.8
A18: Обед | B18: Среда
B19: Суп рисовый с картофелем на м/к бульоне | C19: 250 | E19: 1.98 | G19: 2.74 | I19: 14.58 | K19: 90.75 | M19: 23.05 | N19: 62.55 | O19: 8.25 | P19: 204
B20: Кисель фруктово-ягодный | C20: 200 | E20: 0.1 | G20: 0 | I20: 31.46 | K20: 126.22 | M20: 0.20 | N20: 0 | O20: 0 | P20: 122
B21: Хлеб рж-пшеничный | C21: 55 | E21: 2.72 | G21: 0.49 | I21: 0.74 | K21: 74.6 | M21: 0.11 | N21: 21.65 | O21: 0 | P21: 61
B22: ИТОГО | E22: =SUM(E19:E21) -> 4.8 | F22: 0 | G22: 3.23 | H22: 0 | I22: 46.78 | J22: 0 | K22: 291.57 | L22: 0 | M22: 23.36 | N22: 84.2 | O22: 8.25
A23: Обед | B23: Четверг
B24: Жаркое по-домашнему | C24: 50/100 | E24: 17.21 | G24: 4.67 | I24: 41.16 | K24: 496.88 | M24: 48.60 | N24: 526.5 | O24: 14.02 | P24: 96
B25: Чай сладкий с сахаром | C25: 200 | E25: 1.2 | G25: 3.06 | I25: 13 | K25: 49.28 | M25: 11.60 | N25: 0 | O25: 6 | P25: 943
B26: Хлеб рж-пшеничный | C26: 55 | E26: 2.72 | G26: 0.49 | I26: 0.74 | K26: 74.6 | M26: 0.11 | N26: 21.65 | O26: 0 | P26: 61
B27: ИТОГО | E27: =SUM(E24:E26) -> 21.13 | F27: 0 | G27: 8.22 | H27: 0 | I27: 54.9 | J27: 0 | K27: 620.76 | L27: 0 | M27: 60.31 | N27: 548.15 | O27: 20.02
A28: Обед | B28: Пятница
B29: Суп с макаронными изделиями и картофелем на м/к бульоне | C29: 250 | E29: 3.75 | G29: 1.75 | I29: 8 | K29: 62.75 | M29: 2.90 | N29: 14.4 | O29: 7.8 | P29: 208
B30: Компот из смеси сухофруктов | C30: 200 | E30: 0.04 | G30: 0 | I30: 24.76 | K30: 94.2 | M30: 6.40 | N30: 3.6 | O30: 1.08 | P30: 868
B31: Хлеб рж-пшеничный | C31: 55 | E31: 2.72 | G31: 0.49 | I31: 0.74 | K31: 74.6 | M31: 0.11 | N31: 21.65 | O31: 0 | P31: 61
B32: ИТОГО | E32: =SUM(E29:E31) -> 6.51 | F32: 0 | G32: 2.24 | H32: 0 | I32: 33.5 | J32: 0 | K32: 231.55 | L32: 0 | M32: 9.41 | N32: 39.65 | O32: 8.88
A33: Итого за 5 дней | E33: =E12+E17+E22+E27+E32 -> 46.37 | F33: 0 | G33: 27.85 | H33: 0 | I33: 199.24 | J33: 0 | K33: 1656.01 | L33: 0 | M33: 190.34 | N33: 777.33 | O33: 70.49
B34: Средняя величина за 1 день | E34: =E33/5 -> 9.27 | F34: 0.00 | G34: 5.57 | H34: 0.00 | I34: 39.85 | J34: 0.00 | K34: 331.20 | L34: 0.00 | M34: 38.07 | N34: 155.47 | O34: 14.10
A36: Наименование сборника рецептур:Сборник рецептур блюд и кулинарных изделий для предприятий общественного питания / Авт.-сост: А.И.Здобнов, В.А. Цыганенко, М.И.Цыганенко, М.И.Пересичный- К.А.С.К. 2005 г.
